{"text_format":"3","workbook":"xlsx","n_sheets":10,"sheets":["Principal","USUARIOS","ABOGADOS","JUDICIALES","PREJUDICIALES","ARBITRAMENTOS","PAGOS","Resumen General","Entidades","Base a pegar"],"not_rendered":{"comments":1},"read":"whole","date_system":"1900"}

{"sheet":"Principal","index":0,"n_rows":6,"n_cols":3,"rows_kept":6,"merged":[[2,1,2,14],[3,1,3,14],[5,2,6,13]]}
[]
[]
[null,"Plantilla de certificado de Control Interno eKOGUI"]
[null,"Agencia Nacional de Defensa Jurídica del Estado"]
[]
[null,null,"Por favor seleccione la información que desea registrar, en cualquier momento puede visualizar los resultados de la información que haya registrado seleccionando la opción de Ver resultado."]

{"sheet":"USUARIOS","index":1,"n_rows":19,"n_cols":20,"rows_kept":19,"merged":[[6,1,6,6],[7,3,7,4],[8,1,8,2],[18,2,18,6]]}
[]
[]
[]
[]
[]
[]
[null,"USUARIOS ACTIVOS",{"$nulls":17},"Si"]
[{"$nulls":3},"Favor Diligenciar los Campos Resaltados",{"$nulls":15},"No"]
[null,"Fecha de diligenciamiento de plantilla",null,"2023-03-08",{"$nulls":15},"N/A"]
[null,"Favor Diligenciar los campos Resaltados",{"$nulls":4},"2019-03-21"]
[null,"ROL","TIENE EL ROL","FECHA CREACIÓN  EN EKOGUI","NOMBRE","FECHA ÚLTIMA CAPACITACIÓN","ACTUALIZADO"]
[null,"JEFE FINANCIERO","Si","2011-11-09","MONICA POLO POLO ","2023-03-09",{"$f":"+IF(C12=\"Si\",IF(F12<$G$10,\"DESACTUALIZADO\",\"\"),\"\")","v":""},{"$f":"+IF(C12=\"N/A\",1,0)","v":0},{"$f":"+IF(C12=\"Si\",1,0)","v":1},{"$f":"+IF(C12=\"No\",1,0)","v":0}]
[null,"JEFE JURÍDICO","Si","2020-02-17","CESAR RAFAEL OTERO FLOREZ","2023-03-09","",0,1,0]
[null,"ENLACE DE PAGOS","No",{"$nulls":3},"",0,0,1,{"$nulls":9},"2019-03-21"]
[null,"JEFE CONTROL INTERNO","Si","2022-06-07","ANDRES AVELINO MONTIEL GONZALEZ","2023-02-20","",0,1,0]
[null,"SECRETARIO TÉCNICO","Si","2023-03-10","MARTHA ELENA DE ARMAS DORIA",null,{"$f":"+IF(C16=\"Si\",IF(F16<$G$10,\"DESACTUALIZADO\",\"\"),\"\")","v":"DESACTUALIZADO"},0,1,0]
[null,"ADMINISTRADOR DE LA ENTIDAD","Si","2020-02-17","CESAR RAFAEL OTERO FLOREZ","2023-03-09","",0,1,0]
[]
[null,"Observaciones"]

{"sheet":"ABOGADOS","index":2,"n_rows":21,"n_cols":22,"rows_kept":21,"merged":[[6,5,7,6],[21,2,24,6]]}
[]
[]
[{"$nulls":21},{"$f":"+IF(D12<=10,D12,IF(ROUNDDOWN(D12*10%,0)<10,10,ROUNDDOWN(D12*10%,0)))","v":1}]
[]
[{"$nulls":3},"Favor Diligenciar los Campos Resaltados"]
[]
[null,null,"Fecha de diligenciamiento de plantilla","2023-03-08",null,{"$f":"\"Seleccione una muestra de \"&V3&\" abogados activos y complete la siguiente tabla\"","v":"Seleccione una muestra de 1 abogados activos y complete la siguiente tabla"}]
[{"$nulls":19},"No"]
[null,null,"Abogados al 31 de diciembre de 2022",null,null,"INFORMACIÓN (1)","CANTIDAD DE ABOGADOS",{"$nulls":12},"N/A"]
[null,null,"ABOGADOS ACTIVOS AL 31-12-2022","CANTIDAD",null,"Tiene información estudios",1]
[null,null,"CANTIDAD DE ABOGADOS LITIGANDO SEGUN JURIDICA",1,null,"Tienen información experiencia",28]
[null,null,"ABOGADOS CREADOS EN EKOGUI ACTIVOS",1,null,"Tienen Información laboral",1]
[null,null,"ABOGADOS CON CORREO ACTUALIZADO",1,null,"(1) Se visualiza en el detalle del abogado a la fecha de revisión"]
[{"$nulls":5},"Solamente se revisa que tenga registrada alguna información registrada"]
[]
[null,null,"ABOGADOS INACTIVOS","CANTIDAD",null,"ÚLTIMA CAPACITACIÓN ABOGADOS ACTIVOS","CANTIDAD DE ABOGADOS"]
[null,null,"RETIRADOS EN LA ENTIDAD SEGUNDO SEMESTRE 2022 SEGÚN JURIDICA",0,null,"Posteriores al 01-01-2020",0]
[null,null,"INACTIVADOS EN EKOGUI SEGUNDO SEMESTRE 2022",0,null,"Entre 21-03-2019 y 31-12-2019",0]
[{"$nulls":5},"Capacitaciones anteriores al 21-03-2019",0]
[{"$nulls":5},"Sin capacitación",0]
[null,null,"Observaciones:"]

{"sheet":"JUDICIALES","index":3,"n_rows":32,"n_cols":23,"rows_kept":32,"merged":[[5,2,5,7],[24,5,24,7],[26,5,26,7],[27,5,32,7]]}
[]
[]
[{"$nulls":22},{"$f":"+IF(D17<=10,D17,IF(ROUNDDOWN(D17*10%,0)<10,10,ROUNDDOWN(D17*10%,0)))","v":0}]
[]
[]
[null,null,"Procesos Judiciales"]
[{"$nulls":4},"Favor Diligenciar los Campos Resaltados",{"$nulls":15},"No"]
[null,null,"Fecha de diligenciamiento de plantilla","2023-03-08",null,"MAYORES A 33.000 SMMLV(4) ACTIVOS","CANTIDAD ",{"$nulls":13},"N/A"]
[{"$nulls":5},"Cantidad de procesos de más de 33.000 SMMLV SEGÚN JURIDICA",0]
[null,null,"PROCESOS ACTIVOS AL 31 DE DIC DE 2022","CANTIDAD",null,"Procesos de más de 33.000 SMMLV registrados en eKOGUI",0]
[null,null,"CANTIDAD DE PROCESOS ACTIVOS SEGÚN JURIDICA",157,null,"Procesos de más de 33.000 SMMLV con la pieza demanda(5)",0]
[null,null,"PROCESOS ACTIVOS REGISTRADOS EN EKOGUI",157,null,"(4)Equivalente a un valor indexado de $33.000 millones a 31 de diciembre de 2022"]
[null,null,"PROCESOS SIN ABOGADO ASIGNADO(1)",0,null,"(5) Puede ser remitida a la ANDJE o cargada en el sistema"]
[null,null,"(1) Con fecha de registro anterior al 15-12-2022",null,null,"CALIFICACIÓN DE RIESGO","CANTIDAD"]
[null,null,"PROCESOS TERMINADOS 2DO SEMESTRE 2022","CANTIDAD",null,"PROCESOS ACTIVOS EN EKOGUI  EN CALIDAD DEMANDADO AL 31-12-2022",157]
[null,null,"PROCESOS TERMINADOS DURANTE 2DO SEMESTRE 2022 SEGÚN JURIDICA",0,null,"PROCESOS EN EKOGUI CON CALIFICACIÓN 2DO SEMESTRE 2022",5]
[null,null,"TERMINADOS EN EKOGUI DURANTE 2DO SEMESTRE 2022 (2)",0,null,"PROCESOS EN EKOGUI CON CALIFICACIÓN ANTERIOR A 30-06-2022",79]
[null,null,"(2) Con fecha de actuación en 2022",null,null,"PROCESOS EN EKOGUI SIN CALIFICACIÓN",79]
[]
[null,null,"ACTUALIZACIÓN","CANTIDAD",null,"PROVISIÓN CONTABLE (6)","# PROCESOS","CON PROVISIÓN IGUAL A CERO"]
[null,null,"PROCESOS TERMINADOS EN EKOGUI AL 31 DE DIC 2022",0,null,"PROBABILIDAD DE PERDER EL CASO ALTA",6,6]
[null,null,"PROCESOS ACTIVOS EN EKOGUI CON ESTADO TERMINADO(3)",35,null,"PROBABILIDAD DE PERDER EL CASO MEDIA",72,0]
[null,null,"(3)En el reporte de activos al 31 de diciembre verifique la columna Estado General del proceso",null,null,"PROBABILIDAD DE PERDER EL CASO BAJA",0,0]
[{"$nulls":5},"PROBABILIDAD DE PERDER EL CASO REMOTA",1,0]
[null,null,{"$f":"\"Seleccione \"&W3&\" procesos teminados en el  segundose semestre de 2022 y llene la siguiente tabla:\"","v":"Seleccione 0 procesos teminados en el  segundose semestre de 2022 y llene la siguiente tabla:"},null,null,"(6) Solo se consideran los procesos activos en e-Kogui - calidad demandado al 31 de DICIEMBRE de 2022 que tengan calificación de riesgo"]
[]
[null,null,"CONDENAS","CANTIDAD",null,"OBSERVACIONES"]
[null,null,"PROCESOS ANALIZADOS",4]
[null,null,"PROCESOS TERMINADOS CON EJECUTORIA",0]
[null,null,"PROCESOS DESFAVORABLES",0]
[null,null,"PROCESOS QUE GENERAN EROGACIÓN ECONÓMICA",4]
[null,null,"PROCESOS CON VALOR CONDENA MAYOR A CERO",4]

{"sheet":"PREJUDICIALES","index":4,"n_rows":18,"n_cols":22,"rows_kept":18,"merged":[[6,2,6,6],[8,5,9,6],[15,5,15,6],[16,5,21,6]]}
[]
[{"$nulls":21},{"$f":"+D13+D14","v":61}]
[{"$nulls":21},{"$f":"+IF(V2<=20,V2,IF(ROUNDDOWN(V2*10%,0)<20,20,ROUNDDOWN(V2*10%,0)))","v":20}]
[]
[]
[]
[null,null,"Conciliaciones Prejudiciales"]
[{"$nulls":4},"Favor Diligenciar los Campos Resaltados",{"$nulls":14},"No"]
[null,null,"PREJUDICIALES ACTIVAS AL 31-12-2022","CANTIDAD",null,{"$f":"\"Seleccione una muestra de \"&V3&\" prejudiciales activos registrados antes de 1 de julio de 2022 y complete la siguiente tabla\"","v":"Seleccione una muestra de 20 prejudiciales activos registrados antes de 1 de julio de 2022 y complete la siguiente tabla"},{"$nulls":13},"N/A"]
[null,null,"TOTAL PREJUDICIALES ACTIVOS SEGÚN JURIDICA",0]
[null,null,"TOTAL PREJUDICIALES ACTIVOS EN EKOGUI",0,null,"ACTUALIZACIÓN","CANTIDAD PREJUDICIALES"]
[null,null,"REGISTRO POSTERIOR AL 30/06/2022",0,null,"Procesos que efectivamente se encuentran activos",0]
[null,null,"REGISTRO ENTRE  1 DE ENERO Y 30 DE JUNIO DE 2022",4,null,"Procesos que se encuentran terminados",57]
[null,null,"REGISTRO EN SEGUNDO SEMESTRE DE 2021 Y ANTERIORES",57]
[]
[null,null,"PREJUDICIALES TERMINADAS 2DO SEMESTRE 2022","CANTIDAD",null,"OBSERVACIONES"]
[null,null,"TOTAL PREJUDICIALES TERMINADOS 2DO SEM. 2022 SEGÚN JURIDICA",0]
[null,null,"TERMINADOS EN EKOGUI ÚLTIMA ACTUACIÓN  2DO SEM. 2022",0]

{"sheet":"ARBITRAMENTOS","index":5,"n_rows":17,"n_cols":22,"rows_kept":17,"merged":[[12,2,15,6]]}
[]
[]
[{"$nulls":21},{"$f":"+IF(D10<=10,D10,IF(ROUNDDOWN(D10*10%,0)>10,10,ROUNDDOWN(D10*10%,0)))","v":0}]
[]
[]
[null,null,"ARBITRAMENTOS"]
[null,null,"Favor Diligenciar los Campos Resaltados",{"$nulls":16},"No"]
[null,null,"ARBITRAMENTOS","CANTIDAD",null,"ARBITRAMENTOS","CANTIDAD",{"$nulls":12},"N/A"]
[null,null,"ARBITRAMENTOS ACTIVOS AL 31-12-2022 SEGÚN JURIDICA",0,null,"TOTAL ARBITRAMENTOS TERMINADOS  AL 31-12-2022 SEGÚN JURIDICA",0]
[null,null,"ARBITRAMENTOS ACTIVOS REGISTRADOS EN EKOGUI",0,null,"ARBITRAMENTOS TERMINADOS EN EKOGUI",0]
[]
[null,null,"Observaciones",{"$nulls":16},{"$f":"IF(D9=\"\",0,1)","v":1}]
[]
[]
[]
[{"$nulls":19},{"$f":"IF(G9=\"\",0,1)","v":1}]
[{"$nulls":19},{"$f":"+T12+T16","v":2}]

{"sheet":"PAGOS","index":6,"n_rows":10,"n_cols":22,"rows_kept":10,"merged":[[5,2,5,3],[7,5,9,6]]}
[]
[]
[{"$nulls":21},{"$f":"+IF(D10<=10,D10,IF(ROUNDDOWN(D10*10%,0)>10,10,ROUNDDOWN(D10*10%,0)))","v":{"$error":"#VALUE!"}}]
[]
[]
[null,null,"Pagos",{"$nulls":16},"Si"]
[null,null,"Favor Diligenciar los Campos Resaltados",null,null,"Observaciones",{"$nulls":13},"No"]
[null,null,"PROCESOS ACTIVOS","CANTIDAD",{"$nulls":15},"N/A"]
[null,null,"Gestiona pagos en SIIF de MinHacienda","Si"]
[null,null,"Su entidad utilizo el modulo de pagos en 2022-II?","Si"]

{"sheet":"Resumen General","index":7,"n_rows":28,"n_cols":6,"rows_kept":28,"merged":[[1,1,1,6],[2,1,2,6],[4,2,4,6],[5,2,5,6],[22,1,25,5]]}
[]
[null,"Plantilla de certificado de Control Interno"]
[null,"Agencia Nacional de Defensa Jurídica del Estado"]
[{"$nulls":3},"Favor Diligenciar los Campos Resaltados y Revisar la Información Incompleta Antes de Remitir a la ANDJE *"]
[null,"NOMBRE ENTIDAD QUE REPORTA","CORPORACION AUTONOMA REGIONAL DE LOS VALLES DEL SINU Y DEL SAN JORGE"]
[null,"NOMBRE JEFE CONTROL INTERNO QUE REPORTA","ANDRES AVELINO GONZALEZ MONTIEL "]
[]
[null,"INFORMACIÓN USUARIOS",{"$f":"+IF(SUM(USUARIOS!I12:J17)=0,\"Falta diligenciar\",\"\")","v":""},null,"PREJUDICIALES",{"$f":"+IF(PREJUDICIALES!$D$10=\"\",\"Falta  actualizar\",\"\")","v":""}]
[null,"Completitud de roles",{"$f":"+SUM(USUARIOS!I12:I17)/(6-SUM(USUARIOS!H12:H17))","v":{"v":0.8333333333333334,"d":"83%"}},null,"Procesos prejudiciales",{"$f":"+PREJUDICIALES!$D$11","v":0}]
[null,"Usuarios activos",{"$f":"+ABOGADOS!$D$12+SUM(USUARIOS!I12:I17)","v":6},null,"Porcentaje de registro",{"$f":"IFERROR(PREJUDICIALES!$D$11/PREJUDICIALES!$D$10,\"\")","v":""}]
[null,"Uso del sistema","No Aplica",null,"Actualización prejudiciales",{"$f":"IFERROR(PREJUDICIALES!$G$13/PREJUDICIALES!$V$3,\"\")","v":{"v":2.85,"d":"285%"}}]
[null,"Nivel de capacitación",{"$f":"IFERROR((ABOGADOS!$G$17+ABOGADOS!$G$18+ABOGADOS!$G$19*0.5)/ABOGADOS!D12,\"\")","v":{"v":0,"d":"0%"}}]
[{"$nulls":4},"ARBITRAMENTOS",{"$f":"+IF(ARBITRAMENTOS!T17=0,\"Falta  actualizar\",\"\")","v":""}]
[null,"JUDICIALES",{"$f":"+IF(JUDICIALES!$D$11=\"\",\"Falta  actualizar\",\"\")","v":""},null,"Procesos arbitrales",{"$f":"+ARBITRAMENTOS!D10","v":0}]
[null,"Procesos activos",{"$f":"+JUDICIALES!$D$12","v":157},null,"Porcentaje de registro",{"$f":"IFERROR(ARBITRAMENTOS!D10/ARBITRAMENTOS!D9,\"\")","v":""}]
[null,"Porcentaje de registro",{"$f":"IFERROR(JUDICIALES!$D$12/JUDICIALES!$D$11,\"\")","v":{"v":1,"d":"100%"}}]
[null,"Actualización más de 33.000 SMMLV",{"$f":"IFERROR(JUDICIALES!$G$11/JUDICIALES!$G$10,\"\")","v":""},null,"PAGOS",{"$f":"+IF(PAGOS!D9=\"\",\"Falta  actualizar\",\"\")","v":""}]
[null,"Procesos por abogado",{"$f":"IFERROR(C15/ABOGADOS!$D$12,\"\")","v":157},null,"Uso del Módulo Pagos",{"$f":"+IF(PAGOS!D10=\"No\",\"No\",\"Si\")","v":"Si"}]
[null,"Provisión aparentemente inconsistente",{"$f":"IFERROR(1-(JUDICIALES!$H$22+JUDICIALES!$H$23+JUDICIALES!$H$24)/(JUDICIALES!$G$22+JUDICIALES!$G$23+JUDICIALES!$G$24),\"\")","v":{"v":1,"d":"100%"}},null,"Realiza Pagos por SIIF",{"$f":"+IF(PAGOS!D9=\"No\",\"No aplica\",\"Si\")","v":"Si"}]
[]
[]
[null,"Observaciones"]
[]
[]
[]
[]
[null,"*Nota Los valores arrojados en esta hoja son solo para referencia y control del diligenciamiento, no deben ser usados para "]
[null,"calificar o cualificar o comparar a las entidades, no hay valores buenos ni malos. No es una hoja de validaciÓn"]

{"sheet":"Entidades","index":8,"n_rows":421,"n_cols":1,"rows_kept":421,"hidden":true}
["Entidad"]
["ADMINISTRADORA COLOMBIANA DE PENSIONES"]
["ADMINISTRADORA DE LOS RECURSOS DEL SISTEMA GENERAL DE SEGURIDAD SOCIAL EN SALUD"]
["ADMINISTRADORA DEL MONOPOLIO RENTISTICO DE LOS JUEGOS DE SUERTE Y AZAR"]
["AGENCIA COLOMBIANA PARA LA REINCORPORACION Y NORMALIZACION"]
["AGENCIA DE DESARROLLO RURAL"]
["AGENCIA DE RENOVACION DEL TERRITORIO"]
["AGENCIA DEL INSPECTOR GENERAL DE TRIBUTOS, RENTAS Y CONTRIBUCIONES PARAFISCALES"]
["AGENCIA LOGISTICA DE LAS FUERZAS MILITARES"]
["AGENCIA NACIONAL DE CONTRATACION PUBLICA - COLOMBIA COMPRA EFICIENTE"]
["AGENCIA NACIONAL DE DEFENSA JURIDICA DEL ESTADO"]
["AGENCIA NACIONAL DE HIDROCARBUROS"]
["AGENCIA NACIONAL DE INFRAESTRUCTURA"]
["AGENCIA NACIONAL DE MINERIA"]
["AGENCIA NACIONAL DE SEGURIDAD VIAL"]
["AGENCIA NACIONAL DE TIERRAS"]
["AGENCIA NACIONAL DEL ESPECTRO"]
["AGENCIA NACIONAL INMOBILIARIA VIRGILIO BARCO VARGAS"]
["AGENCIA PRESIDENCIAL DE COOPERACION INTERNACIONAL DE COLOMBIA"]
["ARCHIVO GENERAL DE LA NACION"]
["ARCO GRUPO BANCOLDEX S.A. COMPANIA DE FINANCIAMIENTO"]
["ARMADA NACIONAL"]
["ARTESANIAS DE COLOMBIA S.A."]
["AUDITORIA GENERAL DE LA REPUBLICA"]
["AUTORIDAD NACIONAL DE ACUICULTURA Y PESCA"]
["AUTORIDAD NACIONAL DE LICENCIAS AMBIENTALES"]
["AUTORIDAD NACIONAL DE TELEVISIÓN EN LIQUIDACIÓN"]
["BANCO AGRARIO DE COLOMBIA S.A."]
["BANCO DE COMERCIO EXTERIOR DE COLOMBIA S.A."]
["BANCO DE LA REPUBLICA"]
["BIOENERGY S.A.S."]
["BIOENERGY ZONA FRANCA S.A.S."]
["CAJA DE COMPENSACION FAMILIAR CAMPESINA- COMCAJA"]
["CAJA DE RETIRO DE LAS FUERZAS MILITARES"]
["CAJA DE SUELDOS DE RETIRO DE LA POLICIA NACIONAL"]
["CAJA PROMOTORA DE VIVIENDA MILITAR Y DE POLICIA"]
["CAMARA DE REPRESENTANTES"]
["CANAL REGIONAL DE TELEVISION DEL CARIBE LTDA"]
["CANAL REGIONAL DE TELEVISION TEVEANDINA LTDA"]
["CENIT TRANSPORTE Y LOGISTICA DE HIDROCARBUROS"]
["CENTRAL DE ABASTOS DE CUCUTA S.A."]
["CENTRAL DE INVERSIONES S.A."]
["CENTRALES ELECTRICAS DE NARINO S.A. E.S.P."]
["CENTRALES ELECTRICAS DEL CAUCA S.A. E.S.P."]
["CENTRO DE DIAGNÓSTICO AUTOMOTOR DE CALDAS"]
["CENTRO DERMATOLOGICO FEDERICO LLERAS ACOSTA EMPRESA SOCIAL DEL ESTADO"]
["CENTRO NACIONAL DE MEMORIA HISTORICA"]
["CLUB MILITAR DE OFICIALES"]
["COMANDO GENERAL DE LAS FUERZAS MILITARES"]
["COMISION DE REGULACION DE AGUA POTABLE Y SANEAMIENTO BASICO"]
["COMISION DE REGULACION DE COMUNICACIONES"]
["COMISION DE REGULACION DE ENERGIA Y GAS"]
["COMISION NACIONAL DEL SERVICIO CIVIL"]
["COMISION PARA EL ESCLARECIMIENTO DE LA VERDAD, LA CONVIVENCIA Y LA NO REPETICION"]
["COMISIONADO PARA LA POLICIA- MINISTERIO DE DEFENSA NACIONAL"]
["COMPANIA DE EXPERTOS EN MERCADO S.A - XM S.A "]
["COMPUTADORES PARA EDUCAR"]
["CONCESION COSTERA CARTAGENA BARRANQUILLA S.A.S"]
["CONSEJO NACIONAL ELECTORAL"]
["CONSEJO PROFESIONAL NACIONAL DE ARQUITECTURA Y SUS PROFESIONALES AUXILIARES"]
["CONSEJO PROFESIONAL NACIONAL DE INGENIERIA"]
["CONSORCIO FONDO COLOMBIA EN PAZ 2019"]
["CONTRALORIA GENERAL DE LA REPUBLICA"]
["CORPORACION  AUTONOMA REGIONAL DEL ALTO MAGDALENA"]
["CORPORACION AUTONOMA REGIONAL DE BOYACA"]
["CORPORACION AUTONOMA REGIONAL DE CALDAS"]
["CORPORACION AUTONOMA REGIONAL DE CHIVOR "]
["CORPORACION AUTONOMA REGIONAL DE CUNDINAMARCA"]
["CORPORACION AUTONOMA REGIONAL DE LA FRONTERA NORORIENTAL"]
["CORPORACION AUTONOMA REGIONAL DE LA GUAJIRA"]
["CORPORACION AUTONOMA REGIONAL DE LA ORINOQUIA"]
["CORPORACION AUTONOMA REGIONAL DE LAS CUENCAS DE LOS RIOS NEGRO Y NARE"]
["CORPORACION AUTONOMA REGIONAL DE LOS VALLES DEL SINU Y DEL SAN JORGE"]
["CORPORACION AUTONOMA REGIONAL DE NARINO"]
["CORPORACION AUTONOMA REGIONAL DE RISARALDA"]
["CORPORACION AUTONOMA REGIONAL DE SANTANDER"]
["CORPORACION AUTONOMA REGIONAL DE SUCRE"]
["CORPORACION AUTONOMA REGIONAL DEL ATLANTICO"]
["CORPORACION AUTONOMA REGIONAL DEL CANAL DEL DIQUE"]
["CORPORACION AUTONOMA REGIONAL DEL CAUCA"]
["CORPORACION AUTONOMA REGIONAL DEL CENTRO DE ANTIOQUIA"]
["CORPORACION AUTONOMA REGIONAL DEL CESAR"]
["CORPORACION AUTONOMA REGIONAL DEL GUAVIO"]
["CORPORACION AUTONOMA REGIONAL DEL MAGDALENA"]
["CORPORACION AUTONOMA REGIONAL DEL QUINDIO"]
["CORPORACION AUTONOMA REGIONAL DEL RIO GRANDE DEL MAGDALENA"]
["CORPORACION AUTONOMA REGIONAL DEL SUR DE BOLIVAR"]
["CORPORACION AUTONOMA REGIONAL DEL TOLIMA"]
["CORPORACION AUTONOMA REGIONAL DEL VALLE DEL CAUCA"]
["CORPORACION AUTONOMA REGIONAL PARA EL DESARROLLO SOSTENIBLE DEL CHOCO"]
["CORPORACION AUTONOMA REGIONAL PARA LA DEFENSA DE LA MESETA DE BUCARAMANGA"]
["CORPORACION COLOMBIANA DE INVESTIGACION AGROPECUARIA"]
["CORPORACION DE CIENCIA Y TECNOLOGIA PARA EL DESARROLLO DE LA INDUSTRIA NAVAL, MARITIMA Y FLUVIAL"]
["CORPORACION DE LA INDUSTRIA AERONAUTICA COLOMBIANA S.A."]
["CORPORACION NACIONAL PARA LA RECONSTRUCCION DE LA CUENCA DEL RIO PAEZ Y ZONAS ALEDANAS"]
["CORPORACION PARA EL DESARROLLO SOSTENIBLE DE LA MOJANA Y EL SAN JORGE"]
["CORPORACION PARA EL DESARROLLO SOSTENIBLE DEL ARCHIPIELAGO DE SAN ANDRES PROVIDENCIA Y SANTA CATALINA"]
["CORPORACION PARA EL DESARROLLO SOSTENIBLE DEL AREA DE MANEJO ESPECIAL LA MACARENA"]
["CORPORACION PARA EL DESARROLLO SOSTENIBLE DEL NORTE Y ORIENTE DE LA AMAZONIA"]
["CORPORACION PARA EL DESARROLLO SOSTENIBLE DEL SUR DE LA AMAZONIA"]
["CORPORACION PARA EL DESARROLLO SOSTENIBLE DEL URABA"]
["DEFENSA CIVIL COLOMBIANA"]
["DEFENSORIA DEL PUEBLO"]
["DEPARTAMENTO ADMINISTRATIVO DE LA FUNCION PUBLICA"]
["DEPARTAMENTO ADMINISTRATIVO DE LA PRESIDENCIA DE LA REPUBLICA"]
["DEPARTAMENTO ADMINISTRATIVO DIRECCION NACIONAL DE INTELIGENCIA"]
["DEPARTAMENTO ADMINISTRATIVO NACIONAL DE ESTADISTICA"]
["DEPARTAMENTO ADMINISTRATIVO PARA LA PROSPERIDAD SOCIAL"]
["DEPARTAMENTO NACIONAL DE PLANEACION"]
["DIRECCION DE IMPUESTOS Y ADUANAS NACIONALES - DIAN -DIRECCION SECCIONAL DE ADUANAS DE BARRANQUILLA"]
["DIRECCION DE IMPUESTOS Y ADUANAS NACIONALES - DIAN -DIRECCION SECCIONAL DE ADUANAS DE BOGOTA"]
["DIRECCION DE IMPUESTOS Y ADUANAS NACIONALES - DIAN -DIRECCION SECCIONAL DE ADUANAS DE CALI"]
["DIRECCION DE IMPUESTOS Y ADUANAS NACIONALES - DIAN -DIRECCION SECCIONAL DE ADUANAS DE CARTAGENA"]
["DIRECCION DE IMPUESTOS Y ADUANAS NACIONALES - DIAN -DIRECCION SECCIONAL DE ADUANAS DE CUCUTA"]
["DIRECCION DE IMPUESTOS Y ADUANAS NACIONALES - DIAN -DIRECCION SECCIONAL DE ADUANAS DE MEDELLIN"]
["DIRECCION DE IMPUESTOS Y ADUANAS NACIONALES - DIAN -DIRECCION SECCIONAL DE IMPUESTOS DE BARRANQUILLA"]
["DIRECCION DE IMPUESTOS Y ADUANAS NACIONALES - DIAN -DIRECCION SECCIONAL DE IMPUESTOS DE BOGOTA"]
["DIRECCION DE IMPUESTOS Y ADUANAS NACIONALES - DIAN -DIRECCION SECCIONAL DE IMPUESTOS DE CALI"]
["DIRECCION DE IMPUESTOS Y ADUANAS NACIONALES - DIAN -DIRECCION SECCIONAL DE IMPUESTOS DE CARTAGENA"]
["DIRECCION DE IMPUESTOS Y ADUANAS NACIONALES - DIAN -DIRECCION SECCIONAL DE IMPUESTOS DE CUCUTA"]
["DIRECCION DE IMPUESTOS Y ADUANAS NACIONALES - DIAN -DIRECCION SECCIONAL DE IMPUESTOS DE GRANDES CONTRIBUYENTES"]
["DIRECCION DE IMPUESTOS Y ADUANAS NACIONALES - DIAN -DIRECCION SECCIONAL DE IMPUESTOS DE MEDELLIN"]
["DIRECCION DE IMPUESTOS Y ADUANAS NACIONALES - DIAN -DIRECCION SECCIONAL DE IMPUESTOS Y ADUANAS DE ARAUCA"]
["DIRECCION DE IMPUESTOS Y ADUANAS NACIONALES - DIAN -DIRECCION SECCIONAL DE IMPUESTOS Y ADUANAS DE ARMENIA"]
["DIRECCION DE IMPUESTOS Y ADUANAS NACIONALES - DIAN -DIRECCION SECCIONAL DE IMPUESTOS Y ADUANAS DE BARRANCABERMEJA"]
["DIRECCION DE IMPUESTOS Y ADUANAS NACIONALES - DIAN -DIRECCION SECCIONAL DE IMPUESTOS Y ADUANAS DE BUCARAMANGA"]
["DIRECCION DE IMPUESTOS Y ADUANAS NACIONALES - DIAN -DIRECCION SECCIONAL DE IMPUESTOS Y ADUANAS DE BUENAVENTURA"]
["DIRECCION DE IMPUESTOS Y ADUANAS NACIONALES - DIAN -DIRECCION SECCIONAL DE IMPUESTOS Y ADUANAS DE FLORENCIA"]
["DIRECCION DE IMPUESTOS Y ADUANAS NACIONALES - DIAN -DIRECCION SECCIONAL DE IMPUESTOS Y ADUANAS DE GIRARDOT"]
["DIRECCION DE IMPUESTOS Y ADUANAS NACIONALES - DIAN -DIRECCION SECCIONAL DE IMPUESTOS Y ADUANAS DE IBAGUE"]
["DIRECCION DE IMPUESTOS Y ADUANAS NACIONALES - DIAN -DIRECCION SECCIONAL DE IMPUESTOS Y ADUANAS DE MANIZALES"]
["DIRECCION DE IMPUESTOS Y ADUANAS NACIONALES - DIAN -DIRECCION SECCIONAL DE IMPUESTOS Y ADUANAS DE MONTERIA"]
["DIRECCION DE IMPUESTOS Y ADUANAS NACIONALES - DIAN -DIRECCION SECCIONAL DE IMPUESTOS Y ADUANAS DE NEIVA"]
["DIRECCION DE IMPUESTOS Y ADUANAS NACIONALES - DIAN -DIRECCION SECCIONAL DE IMPUESTOS Y ADUANAS DE PALMIRA"]
["DIRECCION DE IMPUESTOS Y ADUANAS NACIONALES - DIAN -DIRECCION SECCIONAL DE IMPUESTOS Y ADUANAS DE PASTO"]
["DIRECCION DE IMPUESTOS Y ADUANAS NACIONALES - DIAN -DIRECCION SECCIONAL DE IMPUESTOS Y ADUANAS DE PEREIRA"]
["DIRECCION DE IMPUESTOS Y ADUANAS NACIONALES - DIAN -DIRECCION SECCIONAL DE IMPUESTOS Y ADUANAS DE POPAYAN"]
["DIRECCION DE IMPUESTOS Y ADUANAS NACIONALES - DIAN -DIRECCION SECCIONAL DE IMPUESTOS Y ADUANAS DE QUIBDO"]
["DIRECCION DE IMPUESTOS Y ADUANAS NACIONALES - DIAN -DIRECCION SECCIONAL DE IMPUESTOS Y ADUANAS DE RIOHACHA"]
["DIRECCION DE IMPUESTOS Y ADUANAS NACIONALES - DIAN -DIRECCION SECCIONAL DE IMPUESTOS Y ADUANAS DE SAN ANDRES"]
["DIRECCION DE IMPUESTOS Y ADUANAS NACIONALES - DIAN -DIRECCION SECCIONAL DE IMPUESTOS Y ADUANAS DE SANTA MARTA"]
["DIRECCION DE IMPUESTOS Y ADUANAS NACIONALES - DIAN -DIRECCION SECCIONAL DE IMPUESTOS Y ADUANAS DE SINCELEJO"]
["DIRECCION DE IMPUESTOS Y ADUANAS NACIONALES - DIAN -DIRECCION SECCIONAL DE IMPUESTOS Y ADUANAS DE SOGAMOSO"]
["DIRECCION DE IMPUESTOS Y ADUANAS NACIONALES - DIAN -DIRECCION SECCIONAL DE IMPUESTOS Y ADUANAS DE TULUA"]
["DIRECCION DE IMPUESTOS Y ADUANAS NACIONALES - DIAN -DIRECCION SECCIONAL DE IMPUESTOS Y ADUANAS DE TUNJA"]
["DIRECCION DE IMPUESTOS Y ADUANAS NACIONALES - DIAN -DIRECCION SECCIONAL DE IMPUESTOS Y ADUANAS DE VALLEDUPAR"]
["DIRECCION DE IMPUESTOS Y ADUANAS NACIONALES - DIAN -DIRECCION SECCIONAL DE IMPUESTOS Y ADUANAS DE VILLAVICENCIO"]
["DIRECCION DE IMPUESTOS Y ADUANAS NACIONALES - DIAN -DIRECCION SECCIONAL DE IMPUESTOS Y ADUANAS DE YOPAL"]
["DIRECCION DE IMPUESTOS Y ADUANAS NACIONALES - DIAN -NIVEL CENTRAL"]
["DIRECCION DE SANIDAD DE LA POLICIA NACIONAL"]
["DIRECCION EJECUTIVA DE ADMINISTRACION JUDICIAL - NIVEL CENTRAL"]
["DIRECCION EJECUTIVA DE ADMINISTRACION JUDICIAL - SECCIONAL ARMENIA"]
["DIRECCION EJECUTIVA DE ADMINISTRACION JUDICIAL - SECCIONAL BARRANQUILLA"]
["DIRECCION EJECUTIVA DE ADMINISTRACION JUDICIAL - SECCIONAL BUCARAMANGA"]
["DIRECCION EJECUTIVA DE ADMINISTRACION JUDICIAL - SECCIONAL CALI"]
["DIRECCION EJECUTIVA DE ADMINISTRACION JUDICIAL - SECCIONAL CARTAGENA"]
["DIRECCION EJECUTIVA DE ADMINISTRACION JUDICIAL - SECCIONAL CUCUTA"]
["DIRECCION EJECUTIVA DE ADMINISTRACION JUDICIAL - SECCIONAL FLORENCIA"]
["DIRECCION EJECUTIVA DE ADMINISTRACION JUDICIAL - SECCIONAL IBAGUE"]
["DIRECCION EJECUTIVA DE ADMINISTRACION JUDICIAL - SECCIONAL MANIZALES"]
["DIRECCION EJECUTIVA DE ADMINISTRACION JUDICIAL - SECCIONAL MEDELLIN"]
["DIRECCION EJECUTIVA DE ADMINISTRACION JUDICIAL - SECCIONAL MONTERIA"]
["DIRECCION EJECUTIVA DE ADMINISTRACION JUDICIAL - SECCIONAL NEIVA"]
["DIRECCION EJECUTIVA DE ADMINISTRACION JUDICIAL - SECCIONAL PASTO"]
["DIRECCION EJECUTIVA DE ADMINISTRACION JUDICIAL - SECCIONAL PEREIRA"]
["DIRECCION EJECUTIVA DE ADMINISTRACION JUDICIAL - SECCIONAL POPAYAN"]
["DIRECCION EJECUTIVA DE ADMINISTRACION JUDICIAL - SECCIONAL QUIBDO"]
["DIRECCION EJECUTIVA DE ADMINISTRACION JUDICIAL - SECCIONAL RIOHACHA"]
["DIRECCION EJECUTIVA DE ADMINISTRACION JUDICIAL - SECCIONAL SANTA MARTA"]
["DIRECCION EJECUTIVA DE ADMINISTRACION JUDICIAL - SECCIONAL SINCELEJO"]
["DIRECCION EJECUTIVA DE ADMINISTRACION JUDICIAL - SECCIONAL TUNJA"]
["DIRECCION EJECUTIVA DE ADMINISTRACION JUDICIAL - SECCIONAL VALLEDUPAR"]
["DIRECCION EJECUTIVA DE ADMINISTRACION JUDICIAL - SECCIONAL VILLAVICENCIO"]
["DIRECCION GENERAL DE LA POLICIA NACIONAL"]
["DIRECCION GENERAL DE SANIDAD MILITAR "]
["DIRECCION GENERAL MARITIMA "]
["DIRECCION NACIONAL DE BOMBEROS DE COLOMBIA"]
["DIRECCION NACIONAL DE DERECHO DE AUTOR"]
["ECOPETROL S.A. - NIVEL CENTRAL"]
["EJERCITO NACIONAL "]
["ELECTRIFICADORA DEL CAQUETA S.A. E.S.P."]
["ELECTRIFICADORA DEL HUILA S.A. E.S.P."]
["ELECTRIFICADORA DEL META S.A. E.S.P."]
["ELECTRIFICADORA DEL TOLIMA SA  EMPRESA DE SERVICIOS PUBLICOS ELECTROLIMA SA ESP EN LIQUIDACION"]
["EMPRESA COLOMBIANA DE PETROLEOS - ECOPETROL - REGIONAL ORINOQUIA"]
["EMPRESA COLOMBIANA DE PRODUCTOS VETERINARIOS S.A."]
["EMPRESA DE ENERGIA DEL AMAZONAS S.A. E.S.P."]
["EMPRESA DE ENERGIA DEL ARCHIPIELAGO DE SAN ANDRES, PROVIDENCIA Y SANTA CATALINA S.A. E.S.P."]
["EMPRESA DE TELECOMUNICACIONES DE BUCARAMANGA S.A E.S.P "]
["EMPRESA DISTRIBUIDORA DEL PACIFICO S.A. E.S.P."]
["EMPRESA NACIONAL PROMOTORA DEL DESARROLLO TERRITORIAL"]
["EMPRESA PUBLICA DE ALCANTARILLADO DE SANTANDER S.A. E.S.P."]
["EMPRESA URRA S.A. E.S.P."]
["ESCUELA SUPERIOR DE ADMINISTRACION PUBLICA"]
["ESCUELA TECNOLOGICA INSTITUTO TECNICO CENTRAL"]
["ESENTTIA MASTERBATCH LTDA"]
["ESENTTIA S.A"]
["FIDEICOMISO ADMINISTRACION DE CONTINGENCIAS CONCESIONES SALINAS"]
["FIDEICOMISO ALCALIS RECONOCIMIENTO DE PENSIONES"]
["FIDEICOMISO CREDITOS LITIGIOSOS ALCALIS"]
["FIDEICOMISO CREDITOS LITIGIOSOS IFI"]
["FIDEICOMISO DE PROMOCION DE EXPORTACIONES PROCOLOMBIA"]
["FIDEICOMISO EMSOLMEC"]
["FIDEICOMISO FONDO NACIONAL DE SALUD"]
["FIDEICOMISO IFI PENSIONES"]
["FIDUCIARIA COLOMBIANA DE COMERCIO EXTERIOR S.A."]
["FIDUCIARIA LA PREVISORA S.A."]
["FINANCIERA DE DESARROLLO NACIONAL"]
["FINANCIERA DE DESARROLLO TERRITORIAL S.A."]
["FISCALIA GENERAL DE LA NACION"]
["FONDO ADAPTACION"]
["FONDO DE BIENESTAR SOCIAL DE LA CONTALORIA GENERAL DE LA REPUBLICA"]
["FONDO DE DESARROLLO DE LA EDUCACION SUPERIOR"]
["FONDO DE GARANTIAS DE ENTIDADES COOPERATIVAS"]
["FONDO DE GARANTIAS DE INSTITUCIONES FINANCIERAS"]
["FONDO DE PASIVO SOCIAL DE FERROCARRILES NACIONALES DE COLOMBIA"]
["FONDO DE PRESTACIONES SOCIALES DEL MAGISTERIO"]
["FONDO DE PREVISION SOCIAL DEL CONGRESO DE LA REPUBLICA"]
["FONDO DE TECNOLOGIAS DE LA INFORMACION Y LAS COMUNICACIONES"]
["FONDO NACIONAL DE AHORRO"]
["FONDO NACIONAL DE ESTUPEFACIENTES"]
["FONDO NACIONAL DE GARANTIAS S.A."]
["FONDO NACIONAL DE VIVIENDA"]
["FONDO PARA EL FINANCIAMIENTO DEL SECTOR AGROPECUARIO"]
["FONDO ROTATORIO DE LA POLICIA NACIONAL"]
["FONDO ROTATORIO DE LA REGISTRADURIA NACIONAL DEL ESTADO CIVIL"]
["FONDO ROTATORIO DEL DEPARTAMENTO ADMINISTRATIVO NACIONAL DE ESTADISTICA"]
["FONDO ROTATORIO DEL MINISTERIO DE RELACIONES EXTERIORES"]
["FONDO SOCIAL DE VIVIENDA DE LA REGISTRADURIA NACIONAL DEL ESTADO CIVIL"]
["FUERZA AEREA COLOMBIANA"]
["GENERADORA Y COMERCIALIZADORA DE ENERGIA DEL CARIBE S.A. E.S.P."]
["GESTION ENERGETICA S.A. E.S.P."]
["HOSPITAL MILITAR CENTRAL"]
["IMPRENTA NACIONAL DE COLOMBIA"]
["INDUSTRIA MILITAR"]
["INFRAESTRUCTURA ASSET MANAGEMENT COLOMBIA S.A.S."]
["INSTITUTO AMAZONICO DE INVESTIGACIONES CIENTIFICAS"]
["INSTITUTO CARO Y CUERVO"]
["INSTITUTO COLOMBIANO AGROPECUARIO"]
["INSTITUTO COLOMBIANO DE ANTROPOLOGIA E HISTORIA"]
["INSTITUTO COLOMBIANO DE BIENESTAR FAMILIAR - NIVEL CENTRAL"]
["INSTITUTO COLOMBIANO DE CREDITO EDUCATIVO Y ESTUDIOS TECNICOS EN EL EXTERIOR MARIANO OSPINA PEREZ"]
["INSTITUTO COLOMBIANO DE DESARROLLO RURAL - INCODER"]
["INSTITUTO COLOMBIANO PARA LA EVALUACION DE LA EDUCACION"]
["INSTITUTO DE CASAS FISCALES DEL EJERCITO"]
["INSTITUTO DE EVALUACION TECNOLOGICA EN SALUD"]
["INSTITUTO DE HIDROLOGIA, METEOROLOGIA Y ESTUDIOS AMBIENTALES"]
["INSTITUTO DE INVESTIGACION DE RECURSOS BIOLOGICOS ALEXANDER VON HUMBOLDT"]
["INSTITUTO DE INVESTIGACIONES AMBIENTALES DEL PACIFICO JOHN VON NEUMANN"]
["INSTITUTO DE INVESTIGACIONES MARINAS Y COSTERAS JOSE BENITO VIVES DE ANDREIS"]
["INSTITUTO DE PLANIFICACION Y PROMOCION DE SOLUCIONES ENERGETICAS PARA LAS ZONAS NO INTERCONECTADAS"]
["INSTITUTO GEOGRAFICO AGUSTIN CODAZZI"]
["INSTITUTO NACIONAL DE CANCEROLOGIA - EMPRESA SOCIAL DEL ESTADO"]
["INSTITUTO NACIONAL DE FORMACION TECNICA PROFESIONAL DE SAN JUAN DEL CESAR"]
["INSTITUTO NACIONAL DE FORMACION TECNICA PROFESIONAL DEL DEPARTAMENTO DE SAN ANDRES, PROVIDENCIA Y SANTA CATALINA"]
["INSTITUTO NACIONAL DE MEDICINA LEGAL Y CIENCIAS FORENSES"]
["INSTITUTO NACIONAL DE METROLOGIA"]
["INSTITUTO NACIONAL DE SALUD"]
["INSTITUTO NACIONAL DE VIAS"]
["INSTITUTO NACIONAL DE VIGILANCIA DE MEDICAMENTOS Y ALIMENTOS"]
["INSTITUTO NACIONAL PARA CIEGOS"]
["INSTITUTO NACIONAL PARA SORDOS"]
["INSTITUTO NACIONAL PENITENCIARIO Y CARCELARIO"]
["INSTITUTO TECNICO NACIONAL DE COMERCIO SIMON RODRIGUEZ"]
["INSTITUTO TOLIMENSE DE FORMACION TECNICA PROFESIONAL"]
["INTERCOLOMBIA S.A. E.S.P"]
["INTERCONEXION ELECTRICA S.A. E.S.P."]
["INTERNEXA S.A"]
["JURISDICCION ESPECIAL PARA LA PAZ"]
["JUSTICIA PENAL MILITAR "]
["LA PREVISORA COMPAÑIA DE SEGUROS - RECOBROS Y SALVAMENTOS"]
["LA PREVISORA S.A. COMPANIA DE SEGUROS"]
["MINISTERIO DE AGRICULTURA Y DESARROLLO RURAL"]
["MINISTERIO DE AMBIENTE Y DESARROLLO SOSTENIBLE"]
["MINISTERIO DE CIENCIA  TECNOLOGÍA E INNOVACIÓN"]
["MINISTERIO DE COMERCIO, INDUSTRIA Y TURISMO"]
["MINISTERIO DE CULTURA"]
["MINISTERIO DE DEFENSA NACIONAL"]
["MINISTERIO DE EDUCACION NACIONAL"]
["MINISTERIO DE EDUCACION NACIONAL - COMPARTIDO"]
["MINISTERIO DE HACIENDA Y CREDITO PUBLICO"]
["MINISTERIO DE JUSTICIA Y DEL DERECHO"]
["MINISTERIO DE MINAS Y ENERGIA"]
["MINISTERIO DE RELACIONES EXTERIORES"]
["MINISTERIO DE SALUD Y PROTECCION SOCIAL"]
["MINISTERIO DE TECNOLOGIAS DE LA INFORMACION Y LAS COMUNICACIONES"]
["MINISTERIO DE TRANSPORTE"]
["MINISTERIO DE VIVIENDA, CIUDAD Y TERRITORIO"]
["MINISTERIO DEL DEPORTE"]
["MINISTERIO DEL INTERIOR"]
["MINISTERIO DEL TRABAJO"]
["OLEODUCTO BICENTENARIO DE COLOMBIA S.A.S."]
["OLEODUCTO CENTRAL S.A.S"]
["OLEODUCTO DE COLOMBIA S.A."]
["OPERACIONES TECNOLOGICAS Y COMERCIALES S.A.S."]
["ORGANISMO NACIONAL DE ACREDITACION"]
["PAP CAJA AGRARIA PENSIONES"]
["PAR - PATRIMONIO AUTONOMO DE REMANENTES DE TELECOMUNICACIONES"]
["PAR BANCO CAFETERO EN LIQUIDACION"]
["PAR BANCO DEL ESTADO EN LIQUIDACION"]
["PAR BCH EN LIQUIDACION"]
["PAR CAJA AGRARIA EN LIQUIDACION C.A.L"]
["PAR CAPRECOM LIQUIDADO"]
["PAR E.S.E ANTONIO NARINO"]
["PAR INCODER EN LIQUIDACION"]
["PAR INURBE EN LIQUIDACION"]
["PARQUES NACIONALES NATURALES DE COLOMBIA"]
["PATRIMONIO AUTONOMO BANCO CAFETERO"]
["PATRIMONIO AUTONOMO BANCO CENTRAL HIPOTECARIO EN LIQUIDACION -PROCESOS-"]
["PATRIMONIO AUTONOMO CAJANAL E.I.C.E. EN LIQUIDACION"]
["PATRIMONIO AUTONOMO CAJANAL EICE EN LIQUIDACION CNPS CUOTAS PARTES PENSIONALES"]
["PATRIMONIO AUTÓNOMO COLOMBIA PRODUCTIVA"]
["PATRIMONIO AUTONOMO DE REMANENTES COMISION NACIONAL DE TELEVISION "]
["PATRIMONIO AUTONOMO DE REMANENTES DEL EXTINTO DEPARTAMENTO ADMINISTRATIVO DAS Y SU FONDO ROTATORIO"]
["PATRIMONIO AUTONOMO DE REMANENTES DEL ISS EN LIQUIDACION"]
["PATRIMONIO AUTONOMO DE REMANENTES E.S.E. FRANCISCO DE PAULA SANTANDER EN LIQUIDACION"]
["PATRIMONIO AUTONOMO DE REMANENTES PAR ANTV LIQUIDADA"]
["PATRIMONIO AUTONOMO FONDO NACIONAL DE SALUD DE LAS PERSONAS PRIVADAS DE LA LIBERTAD"]
["PATRIMONIO AUTÓNOMO FONDO NACIONAL DE TURISMO FONTUR"]
["PATRIMONIO AUTONOMO IFI PENSIONES"]
["PATRIMONIO AUTONOMO INNPULSA"]
["PATRIMONIO AUTONOMO PAP E.S.E JOSE PRUDENCIO PADILLA EN LIQUIDACION"]
["PATRIMONIO AUTONOMO PAP E.S.E. POLICARPA SALAVARRIETA EN LIQUIDACION"]
["PATRIMONIO AUTONOMO PAP EMPRESA DE ENERGIA ELECTRICA DE MAGANGUE S.A. E.S.P. EN LIQUIDACION"]
["PATRIMONIO AUTONOMO PAP ETESA EN LIQUIDACION PAR"]
["PATRIMONIO AUTONOMO PAR CAJANAL S.A. E.P.S EN LIQUIDACION"]
["PATRIMONIO RECEPTOR DE LOS ACTIVOS DE TELECOM Y LAS TELEASOCIADAS"]
["POLICIA NACIONAL - UNIDAD DEFENSA JUDICIAL ANTIOQUIA"]
["POLICIA NACIONAL - UNIDAD DEFENSA JUDICIAL ARAUCA"]
["POLICIA NACIONAL - UNIDAD DEFENSA JUDICIAL ATLANTICO"]
["POLICIA NACIONAL - UNIDAD DEFENSA JUDICIAL BOLIVAR"]
["POLICIA NACIONAL - UNIDAD DEFENSA JUDICIAL BOYACA"]
["POLICIA NACIONAL - UNIDAD DEFENSA JUDICIAL CALDAS"]
["POLICIA NACIONAL - UNIDAD DEFENSA JUDICIAL CAQUETA"]
["POLICIA NACIONAL - UNIDAD DEFENSA JUDICIAL CASANARE"]
["POLICIA NACIONAL - UNIDAD DEFENSA JUDICIAL CAUCA"]
["POLICIA NACIONAL - UNIDAD DEFENSA JUDICIAL CESAR"]
["POLICIA NACIONAL - UNIDAD DEFENSA JUDICIAL CHOCO"]
["POLICIA NACIONAL - UNIDAD DEFENSA JUDICIAL CORDOBA"]
["POLICIA NACIONAL - UNIDAD DEFENSA JUDICIAL GUAJIRA"]
["POLICIA NACIONAL - UNIDAD DEFENSA JUDICIAL HUILA"]
["POLICIA NACIONAL - UNIDAD DEFENSA JUDICIAL MAGDALENA"]
["POLICIA NACIONAL - UNIDAD DEFENSA JUDICIAL META"]
["POLICIA NACIONAL - UNIDAD DEFENSA JUDICIAL NARIÑO"]
["POLICIA NACIONAL - UNIDAD DEFENSA JUDICIAL NORTE DE SANTANDER"]
["POLICIA NACIONAL - UNIDAD DEFENSA JUDICIAL PUTUMAYO"]
["POLICIA NACIONAL - UNIDAD DEFENSA JUDICIAL QUINDIO"]
["POLICIA NACIONAL - UNIDAD DEFENSA JUDICIAL RISARALDA"]
["POLICIA NACIONAL - UNIDAD DEFENSA JUDICIAL SANTANDER"]
["POLICIA NACIONAL - UNIDAD DEFENSA JUDICIAL SUCRE"]
["POLICIA NACIONAL - UNIDAD DEFENSA JUDICIAL TOLIMA"]
["POLICIA NACIONAL - UNIDAD DEFENSA JUDICIAL URABA"]
["POLICIA NACIONAL - UNIDAD DEFENSA JUDICIAL VALLE DEL CAUCA"]
["POSITIVA COMPANIA DE SEGUROS S.A."]
["PROCURADURIA GENERAL DE LA NACION"]
["REFINERIA DE CARTAGENA S.A.S"]
["REGISTRADURIA NACIONAL DEL ESTADO CIVIL"]
["SANATORIO DE AGUA DE DIOS, EMPRESA SOCIAL DEL ESTADO"]
["SANATORIO DE CONTRATACION, EMPRESA SOCIAL DEL ESTADO"]
["SENADO DE LA REPUBLICA"]
["SERVICIO AEREO A TERRITORIOS NACIONALES S.A."]
["SERVICIO GEOLOGICO COLOMBIANO"]
["SERVICIO NACIONAL DE APRENDIZAJE"]
["SERVICIOS POSTALES NACIONALES S.A."]
["SISTEMAS INTELIGENTES EN RED S.A.S."]
["SOCIEDAD DE ACTIVOS ESPECIALES S.A.S."]
["SOCIEDAD DE TELEVISION DE CALDAS, RISARALDA Y QUINDIO LTDA "]
["SOCIEDAD FIDUCIARIA DE DESARROLLO AGROPECUARIO S.A."]
["SOCIEDAD HOTELERA TEQUENDAMA S.A. - CROWNE PLAZA"]
["SOCIEDAD RADIO TELEVISION NACIONAL DE COLOMBIA"]
["SUPERINTENDENCIA DE INDUSTRIA Y COMERCIO"]
["SUPERINTENDENCIA DE LA ECONOMIA SOLIDARIA"]
["SUPERINTENDENCIA DE NOTARIADO Y REGISTRO"]
["SUPERINTENDENCIA DE SERVICIOS PUBLICOS DOMICILIARIOS"]
["SUPERINTENDENCIA DE SOCIEDADES"]
["SUPERINTENDENCIA DE TRANSPORTE"]
["SUPERINTENDENCIA DE VIGILANCIA Y SEGURIDAD PRIVADA"]
["SUPERINTENDENCIA DEL SUBSIDIO FAMILIAR"]
["SUPERINTENDENCIA FINANCIERA DE COLOMBIA"]
["SUPERINTENDENCIA NACIONAL DE SALUD"]
["TRANSELCA S.A. E.S.P."]
["TRIBUNAL MEDICO LABORAL "]
["U.A.E DE GESTION DE RESTITUCION DE TIERRAS DESPOJADAS"]
["UNIDAD ADMINISTRATIVA ESPECIAL CONTADURIA GENERAL DE LA NACION"]
["UNIDAD ADMINISTRATIVA ESPECIAL DE AERONAUTICA CIVIL"]
["UNIDAD ADMINISTRATIVA ESPECIAL DE ALIMENTACIÓN ESCOLAR"]
["UNIDAD ADMINISTRATIVA ESPECIAL DE GESTION PENSIONAL Y CONTRIBUCIONES PARAFISCALES DE LA PROTECCION SOCIAL"]
["UNIDAD ADMINISTRATIVA ESPECIAL DE LA JUSTICIA PENAL MILITAR Y POLICIAL"]
["UNIDAD ADMINISTRATIVA ESPECIAL DE ORGANIZACIONES SOLIDARIAS"]
["UNIDAD ADMINISTRATIVA ESPECIAL DEL SERVICIO PUBLICO DE EMPLEO"]
["UNIDAD ADMINISTRATIVA ESPECIAL JUNTA  CENTRAL DE CONTADORES"]
["UNIDAD ADMINISTRATIVA ESPECIAL MIGRACION COLOMBIA"]
["UNIDAD ADMINISTRATIVA ESPECIAL PARA LA ATENCION Y REPARACION INTEGRAL A LAS VICTIMAS"]
["UNIDAD DE BUSQUEDA DE PERSONAS DADAS POR DESAPARECIDAS EN EL CONTEXTO Y EN RAZON AL CONFLICTO ARMADO"]
["UNIDAD DE GESTION GENERAL- MINISTERIO DE DEFENSA NACIONAL"]
["UNIDAD DE INFORMACION Y ANALISIS FINANCIERO"]
["UNIDAD DE PLANEACION  DE INFRAESTRUCTURA  DE TRANSPORTE"]
["UNIDAD DE PLANEACION MINERO ENERGETICA"]
["UNIDAD DE PLANIFICACION DE TIERRAS RURALES, ADECUACION DE TIERRAS Y USOS AGROPECUARIOS-UPRA"]
["UNIDAD DE PROYECCION NORMATIVA Y ESTUDIOS DE REGULACION FINANCIERA"]
["UNIDAD DE SERVICIOS PENITENCIARIOS Y CARCELARIOS"]
["UNIDAD NACIONAL DE PROTECCION"]
["UNIDAD NACIONAL PARA LA GESTION DEL RIESGO DE DESASTRES"]
["UNIVERSIDAD COLEGIO MAYOR DE CUNDINAMARCA"]
["UNIVERSIDAD DE CALDAS"]
["UNIVERSIDAD DE CORDOBA"]
["UNIVERSIDAD DE LA AMAZONIA"]
["UNIVERSIDAD DE LOS LLANOS"]
["UNIVERSIDAD DEL CAUCA"]
["UNIVERSIDAD DEL PACIFICO"]
["UNIVERSIDAD MILITAR NUEVA GRANADA"]
["UNIVERSIDAD NACIONAL ABIERTA Y A DISTANCIA"]
["UNIVERSIDAD NACIONAL DE COLOMBIA"]
["UNIVERSIDAD PEDAGOGICA NACIONAL"]
["UNIVERSIDAD PEDAGOGICA Y TECNOLOGICA DE COLOMBIA"]
["UNIVERSIDAD POPULAR DEL CESAR"]
["UNIVERSIDAD SURCOLOMBIANA"]
["UNIVERSIDAD TECNOLOGICA DE PEREIRA"]
["UNIVERSIDAD TECNOLOGICA DEL CHOCO DIEGO LUIS CORDOBA"]
["SIN IDENTIFICAR"]
["OTRA"]

{"sheet":"Base a pegar","index":9,"n_rows":18,"n_cols":67,"rows_kept":18,"hidden":true}
[]
["ENTIDAD","NOMBRE JEFE CONTROL INTERNO","CANTIDAD DE ABOGADOS LITIGANDO","ABOGADOS CREADOS EN EKOGUI ACTIVOS","ABOGADOS CON CORREO ACTUALIZADO","ABOGADOS CON PROCESOS ACTIVOS","RETIRADOS EN LA ENTIDAD PRIMER SEMESTRE 2020","INACTIVADOS EN EKOGUI PRIMER SEMESTRE 2020","TIENE INFORMACIÓN ESTUDIOS","TIENEN INFORMACIÓN EXPERIENCIA","TIENEN INFORMACIÓN LABORAL","POSTERIORES AL 01-01-2020","ENTRE 21-03-2019 Y 31-12-2019","CAPACITACIONES ANTERIORES AL 21-03-2019","SIN CAPACITACIÓN","CANTIDAD DE PROCESOS ACTIVOS","PROCESOS ACTIVOS REGISTRADOS EN EKOGUI","PROCESOS SIN ABOGADO ASIGNADO","PROCESOS TERMINADOS PERIODO","TERMINADOS PERIODO EN EKOGUI","PROCESO ENTIDAD TERMINADOS","PROCESOS ACTIVOS CON ESTADO TERMINADO","PROCESOS ANALIZADOS","PROCESOS TERMINADOS CON EJECUTORIA","PROCESOS DESFAVORABLES","PROCESOS QUE GENERAN EROGACIÓN ECONÓMICA","PROCESOS CON VALOR CONDENA MAYOR A CERO","CANTIDAD DE PROCESOS DE MÁS DE 33.000 SMMLV","PROCESOS DE MÁS DE 33.000 SMMLV REGISTRADOS EN EKOGUI","PROCESOS DE MÁS DE 33.000 SMMLV CON LA PIEZA DEMANDA ","PROCESOS ACTIVOS EN CALIDAD DEMANDADO","PROCESOS CON CALIFICACIÓN  EN 2020","PROCESOS CON CALIFICACIÓN ANTERIOR A 2020","PROCESOS SIN CALIFICACIÓN","PROBABILIDAD DE PERDER EL CASO ALTA - PROCESOS","PROBABILIDAD DE PERDER EL CASO MEDIA - PROCESOS","PROBABILIDAD DE PERDER EL CASO BAJA - PROCESOS","PROBABILIDAD DE PERDER EL CASO REMOTA - PROCESOS","PROBABILIDAD DE PERDER EL CASO ALTA - PROVISION 0","PROBABILIDAD DE PERDER EL CASO MEDIA - PROVISION 0","PROBABILIDAD DE PERDER EL CASO BAJA - PROVISION 0","PROBABILIDAD DE PERDER EL CASO REMOTA - PROVISION 0","TOTAL PREJUDICIALES ACTIVOS","TOTAL PREJUDICIALES ACTIVOS EN EKOGUI","REGISTRO EN 2020","REGISTRO EN 2019","REGISTRO EN 2018 Y ANTERIORES","TOTAL PROCESOS TERMINADOS","TERMINADOS ÚLTIMA ACTUACIÓN EN 2020","Procesos que efectivamente se encuentran activos","Proceso que se encuentran terminados","ARBITRAMENTOS ACTIVOS","ARBITRAMENTOS REGISTRADOS EN EKOGUI","TOTAL ARBITRAMENTOS TERMINADOS CORTE","ARBITRAMENTOS TERMINADOS EN EKOGUI","GESTIONA PAGOS EN SIIF DE MINHACIENDA","PAGOS ENLAZADOS","FECHA REPORTE USUARIOS","FECHA REPORTE ABOGADOS","FECHA REPORTE JUDICIALES","OBS1","OBS2","OBS3","OBS4","OBS5","OBS6","OBS7"]
[{"$f":"'Resumen General'!C5","v":"CORPORACION AUTONOMA REGIONAL DE LOS VALLES DEL SINU Y DEL SAN JORGE"},{"$f":"'Resumen General'!C6","v":"ANDRES AVELINO GONZALEZ MONTIEL "},{"$f":"+ABOGADOS!D11","v":1},{"$f":"+ABOGADOS!D12","v":1},{"$f":"+ABOGADOS!D13","v":1},{"$f":"+ABOGADOS!D14","v":0},{"$f":"+ABOGADOS!D17","v":0},{"$f":"+ABOGADOS!D18","v":0},{"$f":"+ABOGADOS!G10","v":1},{"$f":"+ABOGADOS!G11","v":28},{"$f":"+ABOGADOS!G12","v":1},{"$f":"+ABOGADOS!G17","v":0},{"$f":"+ABOGADOS!G18","v":0},{"$f":"+ABOGADOS!G19","v":0},{"$f":"+ABOGADOS!G20","v":0},{"$f":"+JUDICIALES!D11","v":157},{"$f":"+JUDICIALES!D12","v":157},{"$f":"+JUDICIALES!D13","v":0},{"$f":"+JUDICIALES!D16","v":0},{"$f":"+JUDICIALES!D17","v":0},{"$f":"+JUDICIALES!D21","v":0},{"$f":"+JUDICIALES!D22","v":35},{"$f":"JUDICIALES!D28","v":4},{"$f":"JUDICIALES!D29","v":0},{"$f":"JUDICIALES!D30","v":0},{"$f":"JUDICIALES!D31","v":4},{"$f":"JUDICIALES!D32","v":4},{"$f":"+JUDICIALES!G9","v":0},{"$f":"+JUDICIALES!G10","v":0},{"$f":"+JUDICIALES!G11","v":0},{"$f":"+JUDICIALES!G15","v":157},{"$f":"+JUDICIALES!G16","v":5},{"$f":"+JUDICIALES!G17","v":79},{"$f":"+JUDICIALES!G18","v":79},{"$f":"+JUDICIALES!G21","v":6},{"$f":"+JUDICIALES!G22","v":72},{"$f":"+JUDICIALES!G23","v":0},{"$f":"+JUDICIALES!G24","v":1},{"$f":"+JUDICIALES!H21","v":6},{"$f":"+JUDICIALES!H22","v":0},{"$f":"+JUDICIALES!H23","v":0},{"$f":"+JUDICIALES!H24","v":0},{"$f":"+PREJUDICIALES!D10","v":0},{"$f":"+PREJUDICIALES!D11","v":0},{"$f":"+PREJUDICIALES!D12","v":0},{"$f":"+PREJUDICIALES!D13","v":4},{"$f":"+PREJUDICIALES!D14","v":57},{"$f":"+PREJUDICIALES!D17","v":0},{"$f":"+PREJUDICIALES!D18","v":0},{"$f":"+PREJUDICIALES!G12","v":0},{"$f":"+PREJUDICIALES!G13","v":57},{"$f":"+ARBITRAMENTOS!D9","v":0},{"$f":"+ARBITRAMENTOS!D10","v":0},{"$f":"ARBITRAMENTOS!G9","v":0},{"$f":"ARBITRAMENTOS!G10","v":0},{"$f":"+PAGOS!D9","v":"Si"},{"$f":"+PAGOS!D10","v":"Si"},{"$f":"USUARIOS!D9","v":"2023-03-08"},{"$f":"ABOGADOS!D7","v":"2023-03-08"},{"$f":"JUDICIALES!D8","v":"2023-03-08"},{"$f":"+USUARIOS!C19","v":0},{"$f":"+ABOGADOS!C22","v":0},{"$f":"+JUDICIALES!F28","v":0},{"$f":"+PREJUDICIALES!F17","v":0},{"$f":"+ARBITRAMENTOS!C13","v":0},{"$f":"+PAGOS!F8","v":0},{"$f":"'Resumen General'!B23","v":0}]
{"$rows_empty":8}
["ENTIDAD","ROL","TIENE EL ROL","FECHA CREACIÓN  EN EKOGUI","NOMBRE","FECHA ÚLTIMA CAPACITACIÓN","ACTUALIZADO"]
[{"$f":"$A$3","v":"CORPORACION AUTONOMA REGIONAL DE LOS VALLES DEL SINU Y DEL SAN JORGE"},"JEFE FINANCIERO",{"$f":"USUARIOS!C12","v":"Si"},{"$f":"USUARIOS!D12","v":"2011-11-09"},{"$f":"USUARIOS!E12","v":"MONICA POLO POLO "},{"$f":"USUARIOS!F12","v":"2023-03-09"},{"$f":"USUARIOS!G12","v":""}]
["CORPORACION AUTONOMA REGIONAL DE LOS VALLES DEL SINU Y DEL SAN JORGE","JEFE JURÍDICO",{"$f":"USUARIOS!C13","v":"Si"},{"$f":"USUARIOS!D13","v":"2020-02-17"},{"$f":"USUARIOS!E13","v":"CESAR RAFAEL OTERO FLOREZ"},{"$f":"USUARIOS!F13","v":"2023-03-09"},{"$f":"USUARIOS!G13","v":""}]
["CORPORACION AUTONOMA REGIONAL DE LOS VALLES DEL SINU Y DEL SAN JORGE","ENLACE DE PAGOS",{"$f":"USUARIOS!C14","v":"No"},{"$f":"USUARIOS!D14","v":"00:00:00"},{"$f":"USUARIOS!E14","v":0},{"$f":"USUARIOS!F14","v":"00:00:00"},{"$f":"USUARIOS!G14","v":""}]
["CORPORACION AUTONOMA REGIONAL DE LOS VALLES DEL SINU Y DEL SAN JORGE","JEFE CONTROL INTERNO",{"$f":"USUARIOS!C15","v":"Si"},{"$f":"USUARIOS!D15","v":"2022-06-07"},{"$f":"USUARIOS!E15","v":"ANDRES AVELINO MONTIEL GONZALEZ"},{"$f":"USUARIOS!F15","v":"2023-02-20"},{"$f":"USUARIOS!G15","v":""}]
["CORPORACION AUTONOMA REGIONAL DE LOS VALLES DEL SINU Y DEL SAN JORGE","SECRETARIO TÉCNICO",{"$f":"USUARIOS!C16","v":"Si"},{"$f":"USUARIOS!D16","v":"2023-03-10"},{"$f":"USUARIOS!E16","v":"MARTHA ELENA DE ARMAS DORIA"},{"$f":"USUARIOS!F16","v":"00:00:00"},{"$f":"USUARIOS!G16","v":"DESACTUALIZADO"}]
["CORPORACION AUTONOMA REGIONAL DE LOS VALLES DEL SINU Y DEL SAN JORGE","ADMINISTRADOR DE LA ENTIDAD",{"$f":"USUARIOS!C17","v":"Si"},{"$f":"USUARIOS!D17","v":"2020-02-17"},{"$f":"USUARIOS!E17","v":"CESAR RAFAEL OTERO FLOREZ"},{"$f":"USUARIOS!F17","v":"2023-03-09"},{"$f":"USUARIOS!G17","v":""}]